fUSD/lending_fUSD_20250904
["ID","MTS","AMOUNT","RATE_DAILY","PERIOD"]
[383478067,1756955455518,-400.0,0.00021917,2]
[383478068,1756955455528,-400.0,0.00021917,2]
[383478069,1756955455536,-400.0,0.00021917,2]
[383478070,1756955455546,-400.0,0.00021917,2]
[383478071,1756955455556,-400.0,0.00021917,2]
[383478072,1756955455566,-400.0,0.00021917,2]
[383478073,1756955455575,-400.0,0.00021917,2]
[383478074,1756955455585,-400.0,0.00021917,2]
[383478075,1756955455595,-400.0,0.00021917,2]
[383478076,1756955455604,-400.0,0.00021917,2]
[383478077,1756955455613,-400.0,0.00021917,2]
[383478078,1756955455622,-400.0,0.00021917,2]
[383478079,1756955455631,-400.0,0.00021917,2]
[383478080,1756955455641,-400.0,0.00021917,2]
[383478081,1756955455655,-400.0,0.00021917,2]
[383478082,1756955455664,-400.0,0.00021917,2]
[383478083,1756955455673,-689.69,0.00021917,2]
[383478084,1756955455682,-400.0,0.00021917,2]
[383478085,1756955455692,-401.83700919,0.00021917,2]
[383478086,1756955455703,-500.0,0.00021917,2]
[383478087,1756955455712,-400.0,0.00021917,2]
[383478088,1756955455722,-500.0,0.00021917,2]
[383478089,1756955455732,-500.0,0.00021917,2]
[383478090,1756955455742,-500.0,0.00021917,2]
[383478091,1756955455752,-500.0,0.00021917,2]
[383478092,1756955455762,-500.0,0.00021917,2]
[383478093,1756955455771,-500.0,0.00021917,2]
[383478094,1756955455781,-400.0,0.00021917,2]
[383478095,1756955455791,-160.179626,0.00021918,2]
[383478096,1756955455801,-279.207985,0.00021918,2]
[383478097,1756955455810,-279.207985,0.00021918,2]
[383478098,1756955455819,-279.207985,0.00021918,2]
[383478099,1756955455830,-279.207985,0.00021918,2]
[383478100,1756955455839,-279.207985,0.00021918,2]
[383478101,1756955455848,-279.207985,0.00021918,2]
[383478102,1756955455857,-279.207985,0.00021918,2]
[383478103,1756955455867,-279.207985,0.00021918,2]
[383478104,1756955455876,-279.207985,0.00021918,2]
[383478105,1756955455885,-279.207985,0.00021918,2]
[383478106,1756955455894,-279.207985,0.00021918,2]
[383478107,1756955455903,-279.207985,0.00021918,2]
[383478108,1756955455912,-279.207985,0.00021918,2]
[383478109,1756955455921,-279.207985,0.00021918,2]
[383478110,1756955455929,-279.207985,0.00021918,2]
[383478111,1756955455938,-279.207985,0.00021918,2]
[383478112,1756955455948,-279.207985,0.00021918,2]
[383478113,1756955455956,-279.207985,0.00021918,2]
[383478114,1756955455966,-279.207985,0.00021918,2]
[383478115,1756955455975,-279.207992,0.00021918,2]
[383478116,1756955455984,-275.31421,0.00021918,2]
[383478117,1756955455993,-275.31421,0.00021918,2]
[383478118,1756955456002,-275.31421,0.00021918,2]
[383478119,1756955456011,-275.31421,0.00021918,2]
[383478120,1756955456020,-275.31421,0.00021918,2]
[383478121,1756955456029,-275.31421,0.00021918,2]
[383478122,1756955456038,-275.31421,0.00021918,2]
[383478123,1756955456047,-275.31421,0.00021918,2]
[383478124,1756955456056,-275.31421,0.00021918,2]
[383478125,1756955456066,-275.31421,0.00021918,2]
[383478126,1756955456075,-275.31421,0.00021918,2]
[383478127,1756955456084,-275.31421,0.00021918,2]
[383478128,1756955456093,-275.31421,0.00021918,2]
[383478129,1756955456103,-275.31421,0.00021918,2]
[383478130,1756955456111,-275.31421,0.00021918,2]
[383478131,1756955456121,-275.31421,0.00021918,2]
[383478132,1756955456132,-275.31421,0.00021918,2]
[383478133,1756955456141,-275.31421,0.00021918,2]
[383478134,1756955456150,-275.31421,0.00021918,2]
[383478135,1756955456159,-275.314207,0.00021918,2]
[383478136,1756955456168,-180.566704,0.00021918,2]
[383478137,1756955456178,-180.566704,0.00021918,2]
[383478138,1756955456187,-180.566704,0.00021918,2]
[383478139,1756955456196,-180.566704,0.00021918,2]
[383478140,1756955456205,-180.566704,0.00021918,2]
[383478141,1756955456214,-180.566704,0.00021918,2]
[383478142,1756955456223,-180.566704,0.00021918,2]
[383478143,1756955456232,-180.566704,0.00021918,2]
[383478144,1756955456241,-180.566704,0.00021918,2]
[383478145,1756955456250,-180.566704,0.00021918,2]
[383478146,1756955456260,-180.566704,0.00021918,2]
[383478147,1756955456269,-180.566704,0.00021918,2]
[383478148,1756955456278,-180.566704,0.00021918,2]
[383478149,1756955456287,-180.566704,0.00021918,2]
[383478150,1756955456296,-180.566704,0.00021918,2]
[383478151,1756955456305,-180.566704,0.00021918,2]
[383478152,1756955456314,-180.566704,0.00021918,2]
[383478153,1756955456323,-180.566704,0.00021918,2]
[383478154,1756955456332,-180.566704,0.00021918,2]
[383478155,1756955456342,-180.566705,0.00021918,2]
[383478156,1756955456351,-5000.0,0.00021918,2]
[383478157,1756955456361,-521.24276168,0.00021918,2]
[383478158,1756955456370,-150.0,0.00021918,2]
[383478159,1756955456380,-204.47957427,0.00021918,2]
[383478160,1756955456389,-500.0,0.00021919,2]
[383478161,1756955456398,-150.0,0.00021919,2]
[383478162,1756955456408,-160.0,0.00021929,2]
[383478163,1756955456419,-160.0,0.00021929,2]
[383478164,1756955456429,-514.64478986,0.00021929,2]
[383478165,1756955456439,-160.0,0.00021929,2]
[383478166,1756955456448,-212.59699798,0.00021929,2]
[383478167,1756955456460,-325.70435747,0.00021934,2]
[383478168,1756955456469,-243.68065055,0.00021936,2]
[383478169,1756955456478,-838.72872596,0.00021936,2]
[383478170,1756955456488,-13800.34159461,0.00021936,2]
[383478171,1756955456498,-325.70435747,0.00021936,2]
[383478172,1756955456507,-1312.27873166,0.00021937,2]
[383478173,1756955456516,-243.68065055,0.00021938,2]
[383478174,1756955456526,-1312.27873166,0.00021939,2]
[383478175,1756955456536,-13800.34159461,0.00021942,2]
[383478176,1756955456547,-1773.21589262,0.00021943,2]
[383478177,1756955456556,-1312.27873166,0.0002195,2]
[383478178,1756955456567,-838.72872596,0.00021951,2]
[383478179,1756955456576,-150.0,0.00021954,2]
[383478180,1756955456586,-150.0,0.00021954,2]
[383478181,1756955456595,-1312.27873166,0.00021957,2]
[383478182,1756955456609,-325.70435747,0.00021957,2]
[383478183,1756955456619,-325.70435747,0.00021958,2]
[383478184,1756955456630,-13800.34159461,0.00021959,2]
[383478185,1756955456640,-1312.27873166,0.00021962,2]
[383478186,1756955456651,-838.72872596,0.00021962,2]
[383478187,1756955456661,-838.72872596,0.00021966,2]
[383478188,1756955456670,-407.0,0.0002197,2]
[383478189,1756955456680,-838.72872596,0.00021971,2]
[383478190,1756955456688,-243.68065055,0.00021972,2]
[383478191,1756955456698,-4317.55561092,0.00021972,2]
[383478192,1756955456707,-504.04312602,0.00021973,2]
[383478193,1756955456718,-501.26194324,0.00021973,2]
[383478194,1756955456727,-500.0,0.00021973,2]
[383478195,1756955456737,-171.04111995,0.00021973,2]
[383478196,1756955456746,-512.05489775,0.00021973,2]
[383478197,1756955456756,-500.55054868,0.00021973,2]
[383478198,1756955456765,-504.19897733,0.00021973,2]
[383478199,1756955456774,-500.95203951,0.00021973,2]
[383478200,1756955456783,-501.72527821,0.00021973,2]
[383478201,1756955456792,-503.08354107,0.00021973,2]
[383478202,1756955456803,-500.73048129,0.00021973,2]
[383478203,1756955456811,-530.52688843,0.00021973,2]
[383478204,1756955456820,-502.24892591,0.00021973,2]
[383478205,1756955456830,-500.63247066,0.00021973,2]
[383478206,1756955456839,-500.0,0.00021973,2]
[383478207,1756955456849,-165.39430916,0.00021973,2]
[383478208,1756955456858,-500.0,0.00021973,2]
[383478209,1756955456867,-500.0,0.00021973,2]
[383478210,1756955456877,-168.3498695,0.00021973,2]
[383478211,1756955456887,-500.0,0.00021973,2]
[383478212,1756955456896,-501.01828111,0.00021973,2]
[383478213,1756955456906,-500.71303867,0.00021973,2]
[383478214,1756955456915,-500.0,0.00021973,2]
[383478215,1756955456925,-500.0,0.00021973,2]
[383478217,1756955456934,-500.0,0.00021973,2]
[383478218,1756955456943,-500.0,0.00021973,2]
[383478219,1756955456952,-500.0,0.00021973,2]
[383478220,1756955456961,-501.17197549,0.00021973,2]
[383478221,1756955456971,-325.70435747,0.00021979,2]
[383478222,1756955456980,-243.68065055,0.00021981,2]
[383478223,1756955456989,-4630.0301426,0.00021985,2]
[383478224,1756955456998,-1664.78895798,0.00021986,2]
[383478225,1756955457006,-500.0,0.00021986,2]
[383478226,1756955457014,-13800.34159461,0.00021987,2]
[383478227,1756955457024,-13800.34159461,0.00021995,2]
[383478228,1756955457033,-243.68065055,0.00021995,2]
[383478229,1756955457043,-676.28340199,0.00021999,2]
[383478230,1756955457053,-500.0,0.00021999,2]
[383478231,1756955457063,-500.0,0.00021999,2]
[383478232,1756955457073,-500.0,0.00021999,2]
[383478233,1756955457083,-510.07003116,0.00021999,2]
[383478234,1756955457092,-500.0,0.00021999,2]
[383478235,1756955457102,-500.0,0.00021999,2]
[383478236,1756955457111,-709.02,0.00021999,2]
[383478237,1756955457121,-709.02,0.00021999,2]
[383478238,1756955457130,-500.0,0.00021999,2]
[383478239,1756955457139,-500.0,0.00021999,2]
[383478240,1756955457149,-500.0,0.00021999,2]
[383478241,1756955457160,-151.21101291,0.00021999,2]
[383478242,1756955457169,-500.0,0.00021999,2]
[383478243,1756955457179,-500.0,0.00021999,2]
[383478244,1756955457189,-500.0,0.00021999,2]
[383478245,1756955457199,-614.87832055,0.00021999,2]
[383478246,1756955457208,-2000.0,0.00022,2]
[383478247,1756955457219,-299147.58568235,0.00022,4]
[383478248,1756955457228,-16507.47755332,0.00022,2]
[383478249,1756955457239,-4067.9869032,0.00022,2]
[383478250,1756955457251,-500.6829923,0.00022,5]
[383478251,1756955457261,-779.48508956,0.00022,7]
[383478252,1756955457271,-160.97,0.00022,2]
[383478253,1756955457280,-39297.62,0.00022,7]
[383478254,1756955457290,-150.0,0.00022,2]
[383478255,1756955457300,-212.59699798,0.00022,7]
[383478256,1756955457312,-514.64478986,0.00022,7]
[383478257,1756955457323,-215.0,0.0002205,2]
[383478258,1756955457333,-150.0,0.00022055,2]
[383478259,1756955457344,-500.0,0.00022056,2]
[383478260,1756955457363,-150.0,0.00022056,2]
[383478261,1756955457377,-1151.08445,0.0002207,2]
[383478262,1756955457387,-251.33132969,0.00022091,2]
[383478263,1756955457398,-252.59583468,0.00022091,2]
[383478264,1756955457408,-1368.42334502,0.00022091,2]
[383478265,1756955457418,-485.07857684,0.000221,2]
[383478266,1756955457428,-665.02,0.000221,2]
[383478267,1756955457439,-608.0,0.0002211,2]
[383478268,1756955457451,-600.0,0.0002211,2]
[383478269,1756955457461,-235.72641553,0.0002211,2]
[383478270,1756955457470,-500.78371156,0.00022173,2]
[383478271,1756955457479,-502.16829931,0.00022173,2]
[383478272,1756955457489,-501.54473023,0.00022173,2]
[383478273,1756955457499,-500.8787584,0.00022173,2]
[383478274,1756955457508,-500.0,0.00022173,2]
[383478275,1756955457517,-501.12995949,0.00022173,2]
[383478276,1756955457527,-500.50996522,0.00022173,2]
[383478277,1756955457538,-504.31940078,0.00022173,2]
[383478278,1756955457547,-501.29508638,0.00022173,2]
[383478279,1756955457557,-150.0,0.00022173,2]
[383478280,1756955457567,-882.56156013,0.00022177,2]
[383478281,1756955457579,-540.62,0.0002218,2]
[383478282,1756955457588,-500.0,0.0002219,2]
[383478283,1756955457598,-500.0,0.0002219,2]
[383478284,1756955457607,-500.0,0.0002219,2]
[383478285,1756955457617,-500.0,0.0002219,2]
[383478286,1756955457627,-709.02,0.0002219,2]
[383478287,1756955457636,-709.02,0.0002219,2]
[383478288,1756955457647,-500.0,0.0002219,2]
[383478289,1756955457659,-503.17196435,0.0002219,2]
[383478290,1756955457669,-516.95869747,0.0002219,2]
[383478291,1756955457679,-500.0,0.0002219,2]
[383478292,1756955457688,-500.0,0.0002219,2]
[383478293,1756955457699,-400.0,0.00022191,2]
[383478294,1756955457708,-400.0,0.00022191,2]
[383478295,1756955457718,-453.69721125,0.00022191,2]
[383478296,1756955457730,-400.0,0.00022191,2]
[383478297,1756955457739,-330.10220818,0.00022191,2]
[383478298,1756955457750,-400.0,0.00022191,2]
[383478299,1756955457759,-402.34775627,0.00022191,2]
[383478300,1756955457769,-412.45965847,0.00022191,2]
[383478301,1756955457779,-400.0,0.00022191,2]
[383478302,1756955457788,-400.0,0.00022191,2]
[383478303,1756955457799,-400.0,0.00022191,2]
[383478304,1756955457809,-400.0,0.00022191,2]
[383478305,1756955457819,-400.0,0.00022191,2]
[383478306,1756955457828,-400.0,0.00022191,2]
[383478307,1756955457838,-400.0,0.00022191,2]
[383478308,1756955457848,-401.78909166,0.00022191,2]
[383478309,1756955457858,-400.0,0.00022191,2]
[383478310,1756955457867,-486.03,0.00022191,2]
[383478311,1756955457877,-403.20830086,0.00022191,2]
[383478312,1756955457886,-402.69563569,0.00022191,2]
[383478313,1756955457895,-400.0,0.00022191,2]
[383478314,1756955457905,-400.0,0.00022191,2]
[383478315,1756955457914,-400.0,0.00022191,2]
[383478316,1756955457924,-400.0,0.00022191,2]
[383478317,1756955457933,-400.0,0.00022191,2]
[383478318,1756955457943,-400.0,0.00022191,2]
[383478319,1756955457952,-400.0,0.00022191,2]
[383478320,1756955457962,-400.0,0.00022191,2]
[383478321,1756955457971,-400.0,0.00022191,2]
[383478322,1756955457981,-400.0,0.00022191,2]
[383478323,1756955457991,-400.0,0.00022191,2]
[383478324,1756955458000,-400.0,0.00022191,2]
[383478325,1756955458010,-400.0,0.00022191,2]
[383478326,1756955458019,-403.83121109,0.00022191,2]
[383478327,1756955458029,-400.0,0.00022191,2]
[383478328,1756955458038,-400.0,0.00022191,2]
[383478329,1756955458048,-400.0,0.00022191,2]
[383478330,1756955458058,-400.0,0.00022191,2]
[383478331,1756955458067,-400.0,0.00022191,2]
[383478332,1756955458077,-400.0,0.00022191,2]
[383478333,1756955458086,-400.0,0.00022191,2]
[383478334,1756955458096,-400.0,0.00022191,2]
[383478335,1756955458106,-400.0,0.00022191,2]
[383478336,1756955458116,-418.52461681,0.00022191,2]
[383478337,1756955458126,-400.0,0.00022191,2]
[383478338,1756955458136,-400.0,0.00022191,2]
[383478339,1756955458145,-401.47658901,0.00022191,2]
[383478340,1756955458155,-405.99502777,0.00022191,2]
[383478341,1756955458166,-400.0,0.00022191,2]
[383478342,1756955458175,-400.0,0.00022191,2]
[383478343,1756955458185,-409.68310856,0.00022191,2]
[383478344,1756955458195,-410.66298918,0.00022191,2]
[383478345,1756955458206,-400.0,0.00022191,2]
[383478346,1756955458219,-400.0,0.00022191,2]
[383478347,1756955458229,-400.0,0.00022191,2]
[383478348,1756955458238,-400.0,0.00022191,2]
[383478349,1756955458248,-400.0,0.00022191,2]
[383478350,1756955458258,-400.0,0.00022191,2]
[383478351,1756955458268,-400.0,0.00022191,2]
[383478352,1756955458277,-400.0,0.00022191,2]
[383478353,1756955458287,-400.0,0.00022191,2]
[383478354,1756955458296,-400.0,0.00022191,2]
[383478355,1756955458306,-400.0,0.00022191,2]
[383478356,1756955458316,-400.0,0.00022191,2]
[383478357,1756955458326,-400.0,0.00022191,2]
[383478358,1756955458335,-401.60545662,0.00022191,2]
[383478359,1756955458345,-400.0,0.00022191,2]
[383478360,1756955458355,-403.25591226,0.00022191,2]
[383478361,1756955458365,-400.0,0.00022191,2]
[383478362,1756955458375,-403.32903263,0.00022191,2]
[383478363,1756955458384,-400.0,0.00022191,2]
[383478364,1756955458394,-400.0,0.00022191,2]
[383478365,1756955458403,-400.0,0.00022191,2]
[383478366,1756955458414,-400.0,0.00022191,2]
[383478367,1756955458424,-410.15787935,0.00022191,2]
[383478368,1756955458434,-400.0,0.00022191,2]
[383478369,1756955458444,-400.0,0.00022191,2]
[383478370,1756955458454,-499.07,0.00022191,2]
[383478371,1756955458464,-400.0,0.00022191,2]
[383478372,1756955458474,-400.0,0.00022191,2]
[383478373,1756955458484,-400.0,0.00022191,2]
[383478374,1756955458493,-214.20447398,0.00022191,2]
[383478375,1756955458503,-411.69990132,0.00022191,2]
[383478376,1756955458514,-400.0,0.00022191,2]
[383478377,1756955458524,-400.0,0.00022191,2]
[383478378,1756955458535,-400.0,0.00022191,2]
[383478379,1756955458545,-400.0,0.00022191,2]
[383478380,1756955458557,-405.67116249,0.00022191,2]
[383478381,1756955458567,-400.0,0.00022191,2]
[383478382,1756955458576,-400.0,0.00022191,2]
[383478383,1756955458586,-400.0,0.00022191,2]
[383478384,1756955458595,-410.61387416,0.00022191,2]
[383478385,1756955458605,-400.0,0.00022191,2]
[383478386,1756955458615,-412.50047141,0.00022191,2]
[383478387,1756955458624,-400.0,0.00022191,2]
[383478388,1756955458633,-408.35896054,0.00022191,2]
[383478389,1756955458643,-401.32478943,0.00022191,2]
[383478390,1756955458656,-400.0,0.00022191,2]
[383478391,1756955458671,-400.0,0.00022191,2]
[383478392,1756955458680,-999.52,0.00022191,2]
[383478393,1756955458690,-400.0,0.00022191,2]
[383478394,1756955458700,-415.72356185,0.00022191,2]
[383478395,1756955458710,-403.63360474,0.00022191,2]
[383478396,1756955458721,-400.0,0.00022191,2]
[383478397,1756955458730,-400.0,0.00022191,2]
[383478398,1756955458741,-408.44800897,0.00022191,2]
[383478399,1756955458750,-400.0,0.00022191,2]
[383478400,1756955458760,-400.0,0.00022191,2]
[383478401,1756955458770,-402.54953481,0.00022191,2]
[383478402,1756955458780,-400.0,0.00022191,2]
[383478403,1756955458790,-400.0,0.00022191,2]
[383478404,1756955458800,-400.0,0.00022191,2]
[383478405,1756955458810,-484.79905581,0.00022191,2]
[383478406,1756955458819,-405.11361058,0.00022191,2]
[383478407,1756955458829,-400.0,0.00022191,2]
[383478408,1756955458839,-400.0,0.00022191,2]
[383478409,1756955458850,-411.92246748,0.00022191,2]
[383478410,1756955458859,-400.0,0.00022191,2]
[383478411,1756955458870,-400.0,0.00022191,2]
[383478412,1756955458879,-401.49288166,0.00022191,2]
[383478413,1756955458889,-409.57554123,0.00022191,2]
[383478414,1756955458898,-400.0,0.00022191,2]
[383478415,1756955458907,-400.0,0.00022191,2]
[383478416,1756955458915,-400.0,0.00022191,2]
[383478417,1756955458924,-400.0,0.00022191,2]
[383478418,1756955458934,-400.0,0.00022191,2]
[383478419,1756955458943,-400.0,0.00022191,2]
[383478420,1756955458953,-405.20493857,0.00022191,2]
[383478421,1756955458963,-400.0,0.00022191,2]
[383478422,1756955458973,-400.0,0.00022191,2]
[383478423,1756955458982,-403.25017741,0.00022191,2]
[383478424,1756955458992,-400.0,0.00022191,2]
[383478425,1756955459001,-400.0,0.00022191,2]
[383478426,1756955459010,-400.0,0.00022191,2]
[383478427,1756955459019,-400.0,0.00022191,2]
[383478428,1756955459028,-400.0,0.00022191,2]
[383478429,1756955459037,-400.0,0.00022191,2]
[383478430,1756955459046,-632.26,0.00022191,2]
[383478431,1756955459055,-400.0,0.00022191,2]
[383478432,1756955459065,-400.0,0.00022191,2]
[383478433,1756955459074,-400.0,0.00022191,2]
[383478434,1756955459083,-469.0,0.00022191,2]
[383478435,1756955459092,-400.0,0.00022191,2]
[383478436,1756955459101,-403.01102835,0.00022191,2]
[383478437,1756955459110,-400.0,0.00022191,2]
[383478438,1756955459322,-400.0,0.00022191,2]
[383478439,1756955459332,-400.0,0.00022191,2]
[383478440,1756955459342,-400.0,0.00022191,2]
[383478441,1756955459351,-400.0,0.00022191,2]
[383478442,1756955459361,-400.0,0.00022191,2]
[383478443,1756955459370,-400.0,0.00022191,2]
[383478444,1756955459381,-400.0,0.00022191,2]
[383478445,1756955459390,-405.61981653,0.00022191,2]
[383478446,1756955459400,-405.18342904,0.00022191,2]
[383478447,1756955459410,-400.0,0.00022191,2]
[383478448,1756955459419,-400.0,0.00022191,2]
[383478449,1756955459429,-400.0,0.00022191,2]
[383478450,1756955459439,-400.0,0.00022191,2]
[383478451,1756955459448,-400.0,0.00022191,2]
[383478452,1756955459458,-404.41531106,0.00022191,2]
[383478453,1756955459468,-400.0,0.00022191,2]
[383478454,1756955459477,-400.0,0.00022191,2]
[383478455,1756955459487,-400.0,0.00022191,2]
[383478456,1756955459496,-400.0,0.00022191,2]
[383478457,1756955459506,-400.0,0.00022191,2]
[383478458,1756955459515,-400.0,0.00022191,2]
[383478459,1756955459525,-400.0,0.00022191,2]
[383478460,1756955459535,-400.0,0.00022191,2]
[383478461,1756955459544,-400.0,0.00022191,2]
[383478462,1756955459556,-400.0,0.00022191,2]
[383478463,1756955459566,-403.27744446,0.00022191,2]
[383478464,1756955459576,-406.35612579,0.00022191,2]
[383478465,1756955459587,-400.0,0.00022191,2]
[383478466,1756955459597,-400.0,0.00022191,2]
[383478467,1756955459607,-400.0,0.00022191,2]
[383478468,1756955459616,-239.21624917,0.00022191,2]
[383478469,1756955459626,-400.0,0.00022191,2]
[383478470,1756955459636,-400.0,0.00022191,2]
[383478471,1756955459647,-400.0,0.00022191,2]
[383478472,1756955459659,-400.0,0.00022191,2]
[383478473,1756955459669,-400.0,0.00022191,2]
[383478474,1756955459678,-400.0,0.00022191,2]
[383478475,1756955459688,-400.0,0.00022191,2]
[383478476,1756955459698,-400.0,0.00022191,2]
[383478477,1756955459708,-400.0,0.00022191,2]
[383478478,1756955459718,-404.31260995,0.00022191,2]
[383478479,1756955459728,-400.0,0.00022191,2]
[383478480,1756955459738,-400.0,0.00022191,2]
[383478481,1756955459748,-400.0,0.00022191,2]
[383478482,1756955459758,-400.0,0.00022191,2]
[383478483,1756955459769,-410.30906305,0.00022191,2]
[383478484,1756955459778,-400.0,0.00022191,2]
[383478485,1756955459788,-400.0,0.00022191,2]
[383478486,1756955459799,-400.0,0.00022191,2]
[383478487,1756955459808,-400.0,0.00022191,2]
[383478488,1756955459818,-400.0,0.00022191,2]
[383478489,1756955459828,-400.0,0.00022191,2]
[383478490,1756955459838,-400.0,0.00022191,2]
[383478491,1756955459847,-406.53926073,0.00022191,2]
[383478492,1756955459856,-412.5435798,0.00022191,2]
[383478493,1756955459866,-400.0,0.00022191,2]
[383478494,1756955459875,-400.0,0.00022191,2]
[383478495,1756955459885,-400.0,0.00022191,2]
[383478496,1756955459894,-400.0,0.00022191,2]
[383478497,1756955459903,-400.0,0.00022191,2]
[383478498,1756955459913,-400.0,0.00022191,2]
[383478499,1756955459922,-400.0,0.00022191,2]
[383478500,1756955459931,-407.29761668,0.00022191,2]
[383478501,1756955459941,-400.0,0.00022191,2]
[383478502,1756955459950,-400.0,0.00022191,2]
[383478503,1756955459960,-400.0,0.00022191,2]
[383478504,1756955459971,-400.0,0.00022191,2]
[383478505,1756955459980,-400.0,0.00022191,2]
[383478506,1756955459990,-400.0,0.00022191,2]
[383478507,1756955460000,-400.0,0.00022191,2]
[383478508,1756955460011,-400.0,0.00022191,2]
[383478509,1756955460023,-400.0,0.00022191,2]
[383478510,1756955460033,-400.0,0.00022191,2]
[383478511,1756955460043,-863.34,0.00022191,2]
[383478512,1756955460054,-709.34,0.00022191,2]
[383478513,1756955460064,-405.66405682,0.00022191,2]
[383478514,1756955460074,-400.0,0.00022191,2]
[383478515,1756955460083,-400.0,0.00022191,2]
[383478516,1756955460093,-400.0,0.00022191,2]
[383478517,1756955460102,-400.0,0.00022191,2]
[383478518,1756955460112,-406.53999173,0.00022191,2]
[383478519,1756955460122,-400.0,0.00022191,2]
[383478520,1756955460132,-400.0,0.00022191,2]
[383478521,1756955460141,-400.0,0.00022191,2]
[383478522,1756955460151,-400.0,0.00022191,2]
[383478523,1756955460161,-400.0,0.00022191,2]
[383478524,1756955460171,-400.0,0.00022191,2]
[383478525,1756955460183,-400.0,0.00022191,2]
[383478526,1756955460192,-400.0,0.00022191,2]
[383478527,1756955460202,-400.0,0.00022191,2]
[383478528,1756955460212,-400.0,0.00022191,2]
[383478529,1756955460224,-300.0,0.00022191,2]
[383478530,1756955460235,-400.0,0.00022191,2]
[383478531,1756955460245,-400.0,0.00022191,2]
[383478532,1756955460255,-400.0,0.00022191,2]
[383478533,1756955460265,-400.0,0.00022191,2]
[383478534,1756955460275,-400.0,0.00022191,2]
[383478535,1756955460284,-410.63184807,0.00022191,2]
[383478536,1756955460293,-404.60959402,0.00022191,2]
[383478537,1756955460304,-400.0,0.00022191,2]
[383478538,1756955460313,-422.05,0.00022191,2]
[383478539,1756955460323,-400.0,0.00022191,2]
[383478540,1756955460334,-400.0,0.00022191,2]
[383478541,1756955460344,-436.4852118,0.00022191,2]
[383478542,1756955460355,-400.0,0.00022191,2]
[383478543,1756955460364,-400.0,0.00022191,2]
[383478544,1756955460374,-400.0,0.00022191,2]
[383478545,1756955460383,-402.4223874,0.00022191,2]
[383478546,1756955460393,-400.0,0.00022191,2]
[383478547,1756955460403,-400.0,0.00022191,2]
[383478548,1756955460413,-404.10214358,0.00022191,2]
[383478549,1756955460424,-400.0,0.00022191,2]
[383478550,1756955460433,-400.0,0.00022191,2]
[383478551,1756955460443,-400.0,0.00022191,2]
[383478552,1756955460454,-400.0,0.00022191,2]
[383478553,1756955460463,-400.0,0.00022191,2]
[383478554,1756955460473,-400.0,0.00022191,2]
[383478555,1756955460483,-400.0,0.00022191,2]
[383478556,1756955460492,-400.0,0.00022191,2]
[383478557,1756955460502,-400.0,0.00022191,2]
[383478558,1756955460511,-400.0,0.00022191,2]
[383478559,1756955460522,-400.0,0.00022191,2]
[383478560,1756955460532,-400.0,0.00022191,2]
[383478561,1756955460542,-400.0,0.00022191,2]
[383478562,1756955460552,-400.0,0.00022191,2]
[383478563,1756955460562,-204.67176066,0.00022191,2]
[383478564,1756955460572,-400.0,0.00022191,2]
[383478565,1756955460582,-400.0,0.00022191,2]
[383478566,1756955460592,-400.0,0.00022191,2]
[383478567,1756955460601,-400.0,0.00022191,2]